bitfinex/quotes_ETHUSD_20250324
["timestamp","ask_amount","ask_price","bid_price","bid_amount"]
[1742813694709,0.55,2101.0,2100.3,0.827]
[1742813694934,0.55,2101.0,2100.7,4.76022]
[1742813695139,0.55,2101.0,2100.9,4.75986]
[1742813695344,0.55,2101.0,2100.8,4.75998]
[1742813695522,1.3698,2100.9,2100.8,4.75998]
[1742813696709,1.3698,2100.9,2100.7,4.76031]
[1742813696904,0.55,2100.8,2100.1,6.09441855]
[1742813697120,0.55,2100.8,2100.4,4.76089]
[1742813697321,0.55,2100.8,2100.2,1.58507246]
[1742813697521,0.55,2100.8,2100.6,4.76049]
[1742813698735,0.55,2100.8,2100.5,4.76077]
[1742813698950,0.55,2100.6,2100.2,4.76126]
[1742813699121,1.45241,2100.6,2100.3,4.76121]
[1742813699625,0.55,2100.4,2100.1,4.76164]
[1742813700026,0.55,2100.4,2100.1,9.52314]
[1742813700228,0.55,2100.4,2099.8,4.663]
[1742813700229,0.55,2100.4,2100.2,4.76135]
[1742813701024,0.55,2100.4,2100.1,4.76166]
[1742813701227,0.7677,2100.3,2100.0,4.76174]
[1742813701436,1.3177,2100.3,2100.2,4.76145]
[1742813701847,1.3177,2100.3,2100.1,4.7616]
[1742813702336,1.3177,2100.3,2100.2,4.76145]
[1742813702710,1.3177,2100.3,2100.1,4.7616]
[1742813702939,1.3177,2100.3,2099.9,4.76201]
[1742813702940,0.55,2100.2,2099.9,4.76201]
[1742813703155,0.55,2100.2,2099.9,4.762]
[1742813703344,3.7677,2100.3,2100.1,4.76153]
[1742813703713,3.7677,2100.3,2100.0,4.8569525]
[1742813704230,0.55,2100.2,2100.0,0.0950625]
[1742813704821,4.351,2100.1,2100.0,0.0950625]
[1742813705145,4.351,2100.1,2099.7,4.76256]
[1742813705442,9.11274,2100.1,2099.6,4.76278]
[1742813705653,0.8238,2099.8,2099.5,4.76303]
[1742813707260,0.55,2099.7,2099.4,9.52639]
[1742813707460,0.55,2099.7,2099.4,4.76313]
[1742813707892,1.463594,2099.7,2099.3,9.52684]
[1742813708197,1.463594,2099.7,2099.3,4.76337]
[1742813708884,1.3738,2099.8,2099.7,4.76258]
[1742813709204,0.55,2099.7,2099.4,4.85282645]
[1742813709381,0.55,2099.7,2099.4,9.61595645]
[1742813709588,8.69074486,2100.1,2099.4,9.61595645]
[1742813709589,0.7889,2100.4,2099.5,8.95680604]
[1742813709770,0.7889,2100.9,2100.4,4.7609]
[1742813710107,0.7889,2100.9,2100.7,4.76015]
[1742813710310,0.7889,2100.9,2100.7,9.52032]
[1742813710457,0.35293948,2101.1,2101.0,4.75963]
[1742813710658,0.7826,2101.2,2100.8,4.76006]
[1742813711205,3.854158,2101.1,2100.7,4.7603]
[1742813711362,3.854158,2101.1,2100.5,9.42957]
[1742813711363,0.854158,2101.1,2100.8,4.75992]
[1742813711562,0.7826,2101.2,2100.9,4.75972]
[1742813711757,0.7826,2101.2,2101.0,4.75954]
[1742813712195,0.55,2101.1,2101.0,4.75954]
[1742813713720,0.7826,2101.2,2101.1,4.75941]
[1742813713889,1.3326,2101.2,2101.1,4.75941]
[1742813714299,0.55,2101.2,2101.1,4.75941]
[1742813714916,0.7858,2101.4,2101.3,4.75895]
[1742813715431,0.7515,2101.7,2101.6,4.75818]
[1742813715627,1.3015,2101.7,2101.6,4.75818]
[1742813715836,1.3015,2101.7,2101.1,4.7594]
[1742813715837,0.55,2101.4,2101.1,9.42425]
[1742813716138,1.3019,2101.4,2101.0,10.220082]
[1742813716339,1.3019,2101.4,2101.1,9.51861]
[1742813716505,6.05405035,2101.4,2101.0,0.701022]
[1742813716829,0.55,2101.2,2101.0,5.460642]
[1742813717004,0.55,2101.2,2101.1,4.75941]
[1742813717539,0.55,2101.2,2101.0,4.7595]
[1742813719843,0.55,2101.2,2100.9,4.75985]
[1742813720429,5.8140631,2101.2,2100.7,4.76019]
[1742813720632,0.8112,2100.9,2100.7,4.76019]
[1742813720901,0.55,2100.8,2100.6,4.76051]
[1742813721110,0.55,2100.8,2100.6,9.52089]
[1742813721442,0.55,2100.8,2100.7,4.76031]
[1742813721638,0.8112,2100.9,2100.7,4.76031]
[1742813721840,1.3612,2100.9,2100.8,4.76009]
[1742813722931,1.3612,2100.9,2100.6,4.76048]
[1742813723239,1.3612,2100.9,2100.7,4.76021]
[1742813723426,1.3612,2100.9,2100.7,4.76018]
[1742813724327,1.3612,2100.9,2100.7,9.52034]
[1742813724943,1.3612,2100.9,2100.7,4.76016]
[1742813725660,1.3612,2100.9,2100.6,4.76047]
[1742813726306,0.55,2100.8,2100.6,9.52084]
[1742813726645,0.55,2100.8,2100.6,4.76037]
[1742813726945,0.55,2100.8,2100.5,5.20005929]
[1742813726946,0.55,2100.8,2100.5,4.76076]
[1742813727168,0.55,2100.8,2100.5,4.76066]
[1742813727462,0.55,2100.8,2100.6,4.76053]
[1742813728569,0.55,2100.8,2100.4,4.76099]
[1742813728715,0.55,2100.8,2100.3,4.76117]
[1742813728716,0.55,2100.6,2100.3,4.76117]
[1742813728921,0.8124,2100.5,2100.3,4.76117]
[1742813729131,0.8124,2100.5,2100.2,4.76144]
[1742813729359,0.55,2100.4,2100.1,0.70341612]
[1742813729605,0.55,2100.4,2100.0,5.64117015]
[1742813729606,0.55,2100.2,2099.8,9.41734]
[1742813729745,0.55,2100.2,2099.9,4.76212]
[1742813730899,3.8124,2100.5,2100.2,4.76136]
[1742813731059,0.55,2100.4,2100.2,4.76129]
[1742813731260,0.55,2100.4,2100.3,4.76122]
[1742813731663,0.55,2100.4,2100.2,4.76129]
[1742813731981,0.8124,2100.5,2100.3,4.76112]
[1742813732792,0.8124,2100.5,2100.4,4.76099]
[1742813732950,8.4204,2100.8,2100.4,4.76082]
[1742813733295,10.13131749,2100.8,2100.4,4.76082]
[1742813733792,0.55,2100.7,2100.4,4.76082]
[1742813734084,0.55,2100.7,2100.3,4.76119]
[1742813734481,5.31032,2100.7,2100.3,4.76119]
[1742813734693,0.55,2100.7,2100.3,4.76119]
[1742813734897,0.55,2100.5,2100.1,4.76151]
[1742813735075,3.7562,2100.4,2100.0,4.76188]
[1742813735277,0.55,2100.3,2100.0,4.76176]
[1742813735480,0.55,2100.3,2100.0,9.52353]
[1742813736388,0.55,2100.3,2100.1,4.76167]
[1742813737177,0.55,2100.3,2100.1,9.52323]
[1742813737810,0.55,2100.3,2100.2,4.76145]
[1742813738188,0.55,2100.3,2100.1,4.76156]
[1742813738912,0.98062,2100.3,2100.0,4.76189]
[1742813739609,3.98062,2100.3,2099.9,5.11552176]
[1742813739812,8.74184,2100.3,2099.9,5.11552176]
[1742813740018,3.98062,2100.3,2099.9,4.76199]
[1742813740202,3.98062,2100.3,2100.0,1.15451251]
[1742813740396,0.55,2100.1,2100.0,1.15451251]
[1742813740782,0.55,2100.1,2100.0,1.59856102]
[1742813741601,0.55,2100.1,2100.0,1.95359822]
[1742813742314,0.55,2100.1,2100.0,1.50954971]
[1742813742517,0.55,2100.2,2100.0,6.27134971]
[1742813742715,0.90332747,2100.2,2100.0,6.27134971]
[1742813743079,0.90332747,2100.2,2100.0,5.91631251]
[1742813743480,0.90332747,2100.2,2100.1,0.44404327]
[1742813744316,0.55,2100.2,2100.1,0.44404327]
[1742813744515,0.55,2100.2,2100.1,5.20571327]
[1742813745221,0.55,2100.2,2100.1,0.44404327]
[1742813745817,0.55,2100.2,2100.0,4.76178]
[1742813747828,0.55,2100.2,2099.9,4.76211]
[1742813748015,1.963683,2100.2,2099.9,4.76211]
[1742813748212,1.963683,2100.2,2099.8,9.52459]
[1742813748532,0.55,2100.0,2099.6,5.58668]
[1742813748704,0.55,2100.0,2099.6,4.76268]
[1742813749317,0.55,2100.0,2099.7,4.76258]
[1742813749523,1.5989693,2100.0,2099.7,4.76258]
[1742813749717,6.3609493,2100.0,2099.5,4.76298]
[1742813750036,6.2209693,2100.0,2099.6,4.76281]
[1742813750243,6.2109693,2100.0,2099.6,4.76281]
[1742813750601,6.2109693,2100.0,2099.6,5.20726256]
[1742813751004,6.2009693,2100.0,2099.6,5.20726256]
[1742813751521,6.1909693,2100.0,2099.6,5.20726256]
[1742813751695,6.1909693,2100.0,2099.6,4.76281]
[1742813751896,6.1809693,2100.0,2099.6,4.76281]
[1742813752105,6.1809693,2100.0,2099.5,4.76292]
[1742813752311,6.1809693,2100.0,2099.6,4.76271]
[1742813752537,5.132,2100.0,2099.6,9.52542]
[1742813753030,5.132,2100.0,2099.6,9.88090169]
[1742813753233,5.132,2100.0,2099.6,5.11819169]
[1742813753541,5.132,2100.0,2099.8,4.76218]
[1742813754219,5.132,2100.0,2099.9,4.76213]
[1742813754220,0.51,2100.0,2099.9,4.76213]
[1742813754413,0.7642,2100.1,2099.9,4.76213]
[1742813754814,0.55,2100.0,2099.8,4.76231]
[1742813755401,0.55,2100.0,2099.9,4.76213]
[1742813755609,3.35499656,2100.2,2100.1,4.76167]
[1742813755839,3.90499656,2100.2,2100.1,4.76167]
[1742813756337,3.90499656,2100.2,2100.0,4.76186]
[1742813756521,3.90499656,2100.2,2100.0,4.76182]
[1742813758048,3.90499656,2100.2,2100.1,4.76167]
[1742813758226,3.90499656,2100.2,2100.0,4.76184]
[1742813758417,3.90499656,2100.2,2100.0,5.8094794]
[1742813759034,3.90499656,2100.2,2100.0,1.0476394]
[1742813759240,3.90499656,2100.2,2099.9,5.714554]
[1742813759427,0.55,2100.1,2100.0,4.76182]
[1742813759617,0.54,2100.1,2100.0,4.76182]
[1742813759814,0.54,2100.1,2099.9,5.714554]
[1742813760020,0.54,2100.1,2100.0,4.7619]
[1742813760264,0.54,2100.1,2100.0,5.8095454]
[1742813760565,3.0,2100.4,2100.3,4.76122]
[1742813760729,0.7969,2100.7,2100.3,4.76122]
[1742813760911,0.7969,2100.7,2100.0,1.8582454]
[1742813760912,3.0,2100.5,2100.2,4.76145]
[1742813761118,5.55723,2100.7,2100.2,5.42329954]
[1742813761350,10.15023,2100.7,2100.3,4.76122]
[1742813761659,3.0,2100.6,2100.3,4.76122]
[1742813761968,0.55,2100.5,2100.3,4.76122]
[1742813762165,0.55,2100.5,2100.2,5.42330954]
[1742813763389,0.55,2100.5,2100.2,10.18464954]
[1742813763764,0.55,2100.5,2100.2,10.18458954]
[1742813764161,0.55,2100.5,2100.3,4.76119]
[1742813765033,0.55,2100.5,2100.3,10.54071095]
[1742813765232,0.55,2100.5,2100.3,5.77952095]
[1742813766635,0.55,2100.5,2100.4,6.09441855]
[1742813767997,0.55,2100.6,2100.4,6.09441855]
[1742813768290,3.8095,2100.5,2100.4,6.09441855]
[1742813768886,3.55,2100.3,2099.9,5.65055757]
[1742813769386,3.55,2100.3,2100.0,4.76177]
[1742813770076,3.55,2100.3,2099.9,4.76196]
[1742813770077,3.55,2100.3,2099.9,9.52404]
[1742813770271,3.55,2100.3,2099.9,4.76198]
[1742813770795,5.398435,2100.3,2099.9,4.76198]
[1742813771152,5.398435,2100.3,2099.9,9.52394]
[1742813771388,5.398435,2100.3,2100.0,4.76185]
[1742813772151,3.55,2100.3,2100.0,4.76185]
[1742813772351,3.55,2100.3,2100.0,9.52362]
[1742813772577,3.55,2100.3,2100.0,10.88177]
[1742813773549,0.55,2100.3,2100.1,4.76161]
[1742813773766,0.55,2100.3,2100.1,4.76147]
[1742813773968,0.55,2100.3,2100.1,4.76157]
[1742813774454,1.322,2100.6,2100.2,4.76145]
[1742813774794,0.55,2100.4,2100.2,4.76145]
[1742813774993,0.55,2100.4,2100.0,10.88183]
[1742813775154,0.55,2100.4,2100.1,4.76159]
[1742813775904,0.55,2100.4,2100.0,10.88183]
[1742813776303,0.251014,2100.1,2100.0,10.88183]
[1742813777999,0.251014,2100.1,2100.0,11.32640922]
[1742813778182,0.251014,2100.1,2100.0,13.84450124]
[1742813778870,0.35502746,2100.2,2100.0,11.68204532]
[1742813779069,3.55,2100.4,2100.0,11.68204532]
[1742813779277,3.55,2100.4,2100.1,4.76152]
[1742813780006,3.55,2100.4,2100.2,4.76133]
[1742813781292,3.55,2100.4,2100.1,4.76163]
[1742813781613,0.55,2100.2,2100.1,4.76163]
[1742813781895,0.55,2100.3,2100.1,9.52323]
[1742813782077,0.55,2100.3,2100.1,4.7616]
[1742813782299,0.55,2100.3,2100.1,4.76153]
[1742813782497,0.55,2100.3,2100.1,4.76167]
[1742813782702,0.55,2100.3,2100.0,10.88188]
[1742813782940,0.7832,2100.5,2100.2,4.76145]
[1742813783234,0.92832,2100.4,2100.3,4.76121]
[1742813783438,0.55,2100.4,2100.3,4.76121]
[1742813783730,8.3409,2100.7,2100.3,4.76121]
[1742813783887,0.55,2100.6,2100.3,15.64234]
[1742813784235,0.55,2100.6,2100.3,10.88113]
[1742813784392,0.55,2100.6,2100.3,10.88108]
[1742813784721,0.55,2100.6,2100.3,10.88104]
[1742813785030,0.55,2100.6,2100.3,15.64212]
[1742813785191,0.55,2100.6,2100.3,10.830026]
[1742813785392,1.95058017,2100.6,2100.3,10.830026]
[1742813786234,0.55,2100.6,2100.3,10.830026]
[1742813787330,0.55,2100.6,2100.3,15.591126]
[1742813787524,0.55,2100.6,2100.4,4.76096]
[1742813790433,0.55,2100.6,2100.3,10.830166]
[1742813791110,5.31055,2100.6,2100.3,6.068986]
[1742813791433,1.3481,2100.4,2100.3,6.068986]
[1742813791732,4.3481,2100.4,2100.3,6.068986]
[1742813792637,4.1897,2100.4,2100.3,6.068986]
[1742813792844,0.7981,2100.4,2100.3,6.068986]
[1742813793049,0.5929,2100.4,2100.3,6.068986]
[1742813793541,0.5929,2100.4,2100.3,10.830206]
[1742813793746,3.0,2100.7,2100.4,4.76091]
[1742813793922,11.45039317,2100.7,2100.4,4.76091]
[1742813794122,8.45039317,2100.7,2100.4,4.76091]
[1742813794442,3.0,2100.6,2100.4,4.76091]
[1742813794815,3.0,2100.6,2100.3,10.830126]
[1742813796022,0.8099,2100.5,2100.3,6.068986]
[1742813799151,0.55,2100.2,2099.6,6.22824172]
[1742813799329,3.0,2100.0,2099.7,6.12]
[1742813799656,3.0,2099.8,2099.6,0.73272512]
[1742813799952,3.8279,2099.8,2099.6,0.73272512]
[1742813800152,0.55,2099.7,2099.6,0.73272512]
[1742813800747,0.55,2099.7,2099.5,0.47430644]
[1742813801130,0.55,2099.7,2099.5,4.76301]
[1742813801334,0.9141551,2099.7,2099.4,10.88313]
[1742813801646,0.9141551,2099.7,2099.4,12.525831]
[1742813801842,0.9141551,2099.7,2099.4,10.88313]
[1742813802041,1.15222533,2099.7,2099.4,10.88313]
[1742813802265,0.9141551,2099.7,2099.5,4.76283]
[1742813802446,0.9141551,2099.7,2099.6,4.76281]
[1742813802652,0.9141551,2099.7,2099.5,4.76283]
[1742813804562,0.9141551,2099.7,2099.4,10.8832]
[1742813805160,0.9141551,2099.7,2099.4,15.6463]
[1742813805759,0.9141551,2099.7,2099.5,4.76303]
[1742813806755,0.9141551,2099.7,2099.4,10.8831]
[1742813806926,0.9141551,2099.7,2099.4,15.64621]
[1742813807132,0.9141551,2099.7,2099.4,10.8831]
[1742813807963,0.9141551,2099.7,2099.4,15.64622]
[1742813808462,0.9141551,2099.7,2099.4,10.8831]
[1742813811267,0.9141551,2099.7,2099.4,15.64621]
[1742813812484,8.6768551,2099.7,2099.4,6.12]
[1742813812636,3.9141551,2099.7,2099.4,6.12]
[1742813813471,3.9141551,2099.7,2099.4,10.88326]
[1742813815841,3.9141551,2099.7,2099.5,0.1106034]
[1742813818172,0.9141551,2099.7,2099.5,0.1106034]
[1742813821939,3.0,2099.6,2099.5,0.1106034]
[1742813822140,18.336637,2099.6,2099.5,0.1106034]
[1742813822340,10.892116,2099.6,2099.5,0.1106034]
[1742813822545,7.057926,2099.6,2099.5,0.1106034]
[1742813822876,0.55,2099.6,2099.5,0.1106034]
[1742813824176,1.369,2099.6,2099.5,0.1106034]
[1742813824362,1.369,2099.6,2099.0,0.56779981]
[1742813824363,4.76379,2099.2,2099.0,0.56779981]
[1742813824554,3.55,2099.1,2099.0,0.56779981]
[1742813824954,0.55,2099.2,2099.0,0.56779981]
[1742813826270,0.55,2099.0,2098.8,10.29887]
[1742813826468,0.55,2099.2,2098.9,4.7644]
[1742813827176,3.0,2099.1,2098.8,0.7699]
[1742813827485,3.0,2099.1,2098.8,5.53449]
[1742813829589,3.55,2099.2,2098.9,4.76423]
[1742813829749,3.55,2099.3,2099.0,4.76417]
[1742813829950,1.42669451,2099.6,2099.2,5.58642]
[1742813830186,1.42669451,2099.6,2099.2,10.34999]
[1742813830482,10.4657651,2099.7,2099.3,4.76346]
[1742813830676,12.590462,2099.6,2099.2,5.58637]
[1742813830885,0.55,2099.4,2099.2,10.34995]
[1742813831386,0.55,2099.4,2099.2,0.8228]
[1742813831550,0.55,2099.4,2099.1,9.52774]
[1742813831751,0.55,2099.4,2099.1,4.76383]
[1742813832050,3.55,2099.4,2099.1,4.76383]
[1742813832577,0.55,2099.2,2099.1,4.76394]
[1742813833166,0.55,2099.3,2099.0,5.57113]
[1742813833375,3.55,2099.3,2099.0,4.76403]
[1742813833564,4.19462715,2099.3,2099.0,4.76403]
[1742813833765,4.19462715,2099.3,2098.9,10.88437]
[1742813833964,8.95818715,2099.3,2098.9,10.88437]
[1742813834488,13.72182715,2099.3,2098.9,10.88437]
[1742813834670,8.95818715,2099.3,2098.9,15.64862]
[1742813834877,1.19462715,2099.3,2098.9,15.64862]
[1742813835187,1.19462715,2099.3,2099.0,4.76416]
[1742813835354,5.95815715,2099.3,2098.9,10.88425]
[1742813835680,3.0,2099.2,2098.9,10.88425]
[1742813835882,3.0,2099.2,2098.9,15.64851]
[1742813836284,3.0,2099.2,2098.9,10.88425]
[1742813837360,4.45134572,2099.2,2098.9,10.88425]
[1742813839388,4.45134572,2099.2,2098.9,6.12]
[1742813839389,0.55,2099.1,2098.9,6.12]
[1742813839984,0.55,2099.1,2098.9,10.88437]
[1742813840185,0.91081404,2099.1,2098.9,10.88437]
[1742813840801,0.91081404,2099.1,2098.9,6.12]
[1742813843914,2.39975702,2099.1,2098.9,6.12]
[1742813845687,3.0,2099.0,2098.9,6.12]
[1742813846013,3.55,2099.0,2098.9,6.12]
[1742813848730,3.55,2099.0,2098.7,20.19135]
[1742813848884,3.55,2099.0,2098.7,15.42667]
[1742813849283,9.31738583,2099.0,2098.7,6.12]
[1742813849512,4.55321583,2099.0,2098.7,6.12]
[1742813849718,4.55321583,2099.0,2098.8,4.76461]
[1742813850292,0.55,2098.9,2098.7,10.88471]
[1742813850991,0.55,2098.9,2098.8,4.76462]
[1742813851424,0.55,2098.9,2098.7,10.88471]
[1742813851622,0.55,2098.9,2098.8,4.76462]
[1742813851815,0.55,2098.9,2098.8,5.59712]
[1742813852491,0.55,2098.9,2098.8,6.04183921]
[1742813852690,0.55,2098.9,2098.8,6.84256174]
[1742813853829,0.55,2098.9,2098.8,6.64256174]
[1742813854625,0.55,2098.9,2098.8,12.76256174]
[1742813855193,0.55,2098.9,2098.8,15.15588251]
[1742813858430,0.55,2098.9,2098.8,15.72569821]
[1742813859327,0.55,2098.9,2098.8,15.15588251]
[1742813861810,0.55,2098.9,2098.8,15.72609024]
[1742813869109,0.55,2098.9,2098.8,12.50026947]
[1742813869805,0.55,2098.9,2098.8,11.93006174]
[1742813871914,11.57922937,2098.9,2098.8,1.24544174]
[1742813872106,1.3535,2098.6,2098.4,1.21251335]
[1742813872307,4.161846,2098.5,2098.4,1.21251335]
[1742813872847,4.161846,2098.5,2098.4,0.73934685]
[1742813873153,0.55,2098.5,2098.4,5.50487685]
[1742813874109,0.55,2098.5,2098.4,0.73934685]
[1742813874309,0.55,2098.5,2098.3,4.76561]
[1742813875043,0.55,2098.5,2098.4,4.76553]
[1742813876851,0.91533063,2098.5,2098.4,4.76553]
[1742813884663,0.55,2098.5,2098.4,4.76553]
[1742813884862,3.0,2098.7,2098.6,4.76508]
[1742813885752,3.55,2098.7,2098.6,4.76508]
[1742813889729,3.55,2098.7,2098.6,10.88508]
[1742813895554,3.55,2098.7,2098.6,6.12]
[1742813896432,3.55,2098.7,2098.6,10.88508]
[1742813898667,3.55,2098.7,2098.6,6.12]
[1742813898668,4.3203,2098.7,2098.6,6.12]
[1742813899270,3.55,2098.6,2098.3,4.76573]
[1742813900294,8.31513,2098.6,2098.2,10.2101598]
[1742813900497,8.31513,2098.6,2098.2,5.6921598]
[1742813900661,8.31513,2098.6,2098.2,9.53177]
[1742813901498,8.31513,2098.6,2098.3,4.76575]
[1742813901698,9.8386613,2098.6,2098.3,4.76575]
[1742813902092,9.8386613,2098.6,2098.2,4.76586]
[1742813902425,4.3119,2098.4,2098.2,4.76596]
[1742813902565,1.3119,2098.4,2098.2,4.76596]
[1742813905443,1.3119,2098.4,2098.1,10.88609]
[1742813905642,0.55,2098.2,2098.1,10.88609]
[1742813906189,0.55,2098.2,2098.1,11.24264982]
[1742813907249,0.55,2098.3,2098.1,6.47655982]
[1742813907497,3.55,2098.2,2098.1,0.35655982]
[1742813907701,3.55,2098.2,2098.1,5.21190551]
[1742813907900,0.55,2098.2,2098.1,5.21190551]
[1742813908264,0.55,2098.2,2098.1,5.34523036]
[1742813908869,0.55,2098.2,2098.1,4.89953485]
[1742813912705,0.55,2098.2,2098.1,5.69873485]
[1742813913203,0.55,2098.2,2098.1,12.26406557]
[1742813914085,0.55,2098.2,2098.1,13.06555549]
[1742813914900,0.55,2098.2,2098.1,15.38241879]
[1742813916001,0.7588,2098.8,2098.3,4.76568]
[1742813916173,0.7588,2098.8,2098.7,4.76485]
[1742813916374,0.7588,2098.8,2098.7,4.7720208]
[1742813916690,1.3088,2098.8,2098.7,4.7720208]
[1742813916875,1.73968,2098.8,2098.7,4.7720208]
[1742813919002,0.7811,2098.3,2098.2,4.76598]
[1742813919203,0.7811,2098.3,2098.1,9.53224]
[1742813919406,0.55,2098.2,2098.1,4.76606]
[1742813919903,7.76498,2098.7,2098.4,4.76536]
[1742813919904,0.8106,2098.5,2098.4,4.76536]
[1742813920090,1.3606,2098.5,2098.4,4.76536]
[1742813920283,3.55,2098.3,2098.2,9.53173]
[1742813920481,4.3408,2097.9,2097.8,1.37912658]
[1742813920679,14.231979,2097.9,2097.8,0.93366491]
[1742813920902,3.0,2097.8,2097.4,4.76778]
[1742813921118,3.55,2097.8,2097.4,4.76778]
[1742813921601,0.55,2097.6,2097.3,4.76782]
[1742813921805,0.55,2097.6,2097.4,4.76772]
[1742813923474,3.90267781,2097.6,2097.2,6.12]
[1742813923679,9.61652759,2097.6,2097.2,6.12]
[1742813924005,4.76767,2097.5,2097.2,6.12]
[1742813924203,3.55,2097.4,2097.2,6.12]
[1742813924781,0.55,2097.2,2096.9,9.3519]
[1742813925085,3.55,2097.2,2096.9,9.3519]
[1742813925280,3.55,2097.2,2096.9,9.35179]
[1742813925495,3.55,2097.2,2096.9,4.583]
[1742813926211,3.55,2097.2,2096.9,9.35189]
[1742813927405,0.55,2097.2,2097.1,4.76848]
[1742813927600,0.55,2097.2,2097.0,4.76863]
[1742813927786,0.55,2097.2,2097.0,9.53721]
[1742813927982,0.55,2097.2,2097.0,4.76858]
[1742813928304,0.55,2097.2,2097.1,0.13445343]
[1742813928495,3.55,2097.2,2097.1,0.13445343]
[1742813929005,3.55,2097.2,2097.1,0.10958343]
[1742813929304,3.55,2097.2,2097.1,0.00924261]
[1742813929493,9.13666,2097.2,2097.1,0.10155784]
[1742813929803,9.13666,2097.2,2096.9,4.7688]
[1742813930004,4.3684,2097.2,2096.9,4.7688]
[1742813930710,4.3684,2097.2,2096.9,9.53764]
[1742813931101,4.3684,2097.2,2096.9,4.7688]
[1742813931299,4.3684,2097.2,2096.9,9.53764]
[1742813932108,4.3684,2097.2,2097.0,4.77830644]
[1742813932305,0.55,2097.3,2097.1,4.76837]
[1742813932519,0.55,2097.3,2097.1,4.77761261]
[1742813932831,0.55,2097.3,2097.2,0.10214941]
[1742813935418,0.55,2097.3,2097.2,0.11102822]
[1742813937994,0.55,2097.3,2097.2,4.87928822]
[1742813938403,0.55,2097.4,2097.3,4.76803]
[1742813938799,0.55,2097.4,2097.3,4.77654505]
[1742813939013,0.55,2097.4,2097.3,4.87893349]
[1742813939223,0.55,2097.4,2097.3,0.11090349]
[1742813943807,0.55,2097.5,2097.3,0.11090349]
[1742813944012,2.24577692,2097.5,2097.3,4.87893349]
[1742813944204,2.24577692,2097.5,2097.3,0.11090349]
[1742813945646,5.24577692,2097.5,2097.3,0.11090349]
[1742813946015,5.24577692,2097.5,2097.3,4.87892349]
[1742813947343,5.24577692,2097.5,2097.3,0.11090349]
[1742813947518,5.24577692,2097.5,2097.3,4.87892349]
[1742813951240,5.24577692,2097.5,2097.3,4.87880349]
[1742813951444,5.24577692,2097.5,2097.3,9.64673349]
[1742813952221,5.24577692,2097.5,2097.3,4.87880349]
[1742813952945,5.24577692,2097.5,2097.3,0.11090349]
[1742813953452,5.24577692,2097.5,2097.3,4.87889349]
[1742813954043,5.24577692,2097.5,2097.3,0.11090349]
[1742813954440,5.24577692,2097.5,2097.3,4.87891349]
[1742813960436,5.24577692,2097.5,2097.3,0.11090349]
[1742813961063,10.06125642,2097.5,2097.3,0.11090349]
[1742813961261,10.01342692,2097.5,2097.3,0.11090349]
[1742813966486,2.23332045,2097.4,2097.3,0.11090349]
[1742813967044,0.55,2097.4,2097.3,0.11090349]
[1742813983097,9.1275,2097.4,2097.3,0.11090349]
[1742813983399,20.44446,2097.4,2097.3,0.11090349]
[1742813984310,20.021335,2097.4,2097.3,0.11090349]
[1742813984515,19.398265,2097.4,2097.3,0.11090349]
[1742813984672,22.49644097,2097.4,2097.3,0.11090349]
[1742813984873,21.43811497,2097.4,2097.3,0.11090349]
[1742813985294,13.14273297,2097.4,2097.3,0.11090349]
[1742813985622,0.55,2097.3,2097.1,5.5362]
[1742813985769,0.55,2097.3,2097.1,10.30453]
[1742813986099,0.55,2097.4,2097.2,0.0923766]
[1742813988105,5.31766,2097.5,2097.2,0.0923766]
[1742813988410,5.31766,2097.5,2097.2,4.8605566]
[1742813989108,0.55,2097.5,2097.2,4.8605566]
[1742813989312,0.55,2097.5,2097.2,9.6286666]
[1742813989476,0.55,2097.5,2097.2,4.8604866]
[1742813989675,0.55,2097.5,2097.2,9.6286366]
[1742813989904,0.55,2097.5,2097.2,0.0923766]
[1742813990092,0.35267781,2097.6,2097.5,4.76758]
[1742813990302,3.0,2097.7,2097.5,4.76758]
[1742813990601,3.0,2097.8,2097.5,4.77536762]
[1742813990777,0.55,2097.7,2097.5,4.77536762]
[1742813991216,0.55,2097.7,2097.5,9.54279762]
[1742813991390,3.55,2097.8,2097.5,4.77521762]
[1742813992678,0.55,2097.6,2097.5,4.77521762]
[1742813993112,0.55,2097.8,2097.5,4.77521762]
[1742813993677,7.76673,2097.9,2097.5,4.77521762]
[1742813993678,0.36231623,2097.9,2097.8,4.76689]
[1742813993898,0.55,2097.9,2097.8,4.76689]
[1742813994210,0.90042409,2097.9,2097.8,4.87536361]
[1742813996191,0.55,2097.9,2097.8,4.87536361]
[1742813997909,0.90773791,2097.9,2097.8,4.87536361]
[1742813998095,0.90773791,2097.9,2097.8,0.10847361]
[1742813999211,0.55,2097.8,2097.7,4.76712]
[1742813999711,0.35773791,2097.9,2097.7,4.76712]
[1742813999893,0.55,2098.0,2097.7,4.76712]
[1742814000210,0.51925,2098.0,2097.7,4.76712]
[1742814000410,0.7995,2097.9,2097.6,6.12]
[1742814000617,8.92994171,2097.9,2097.6,6.12]
[1742814000911,8.92994171,2097.9,2097.6,10.88732]
[1742814001208,4.16318171,2097.9,2097.6,10.88732]
[1742814001613,8.92995171,2097.9,2097.6,6.12]
[1742814001811,15.11835988,2097.9,2097.6,6.12]
[1742814001985,10.35151988,2097.9,2097.6,6.12]
[1742814002183,0.55,2097.8,2097.6,6.12]